Workbook

Sheet EAF
C1: 2024 Summer Salary Employee Action Form (EAF) Effective dates May 16 through August 15
C3: Name: | I3: 2023-24 Academic Year (AY) Salary:
C5: Home Dept. Number: | I5: Max. Summer Salary: | M5: =M3*((12-D7)/D7) -> 
C7: 2023-24 AY Contract: | E7: =IF(D7=12, "12 mo. Faculty are ineligible to receive Summer Salary", "") ->  | I7: Max. Summer Salary Sponsored Projects (3XXXX - ZXXXX) 90%: | M7: =M5*0.9 -> 
C9: Has this faculty member submitted additional summer salary payments for Summer 2024? | F9: Select One | K9: Include total of all previously submitted payments:
B11: During the summer, a 9-month faculty member may be paid by RIT no more than a total of 33.33% (pro-rated for other appointments) of the faculty member's current AY salary. Faculty effort on sponsored activity is limited to 90% over the summer period. Exceptions approving faculty effort greater than 90% during the summer may be granted upon submission and approval of the plan of work summer form. This limit also applies to the percentage that is pro-rated for faculty members with appointments greater than 9 months but less than 12 months.
B15: 1 | C15: Oracle Account Number: | D15: 01 | F15: 70550 | H15: 32634 | K15: 00000 | O15: =(VLOOKUP(I15,Dropdowns!$N$2:$P$12,3)) -> Non-SPA
D16: ENT | E16: DEPT | F16: OBJ | G16: FEC | I16: PROJ | K16: PROG
C18: May 16 | L18: =(($M$3*D23)*G18) -> 0
C19: Start Date | D19: End Date | G19: % Effort | L19: Contract Amount
C20: =IF(C23<D22,"Exceeds maximum available summer months","") ->  | E20: Approval: | L20: Date:
C21: =IF(C18="May 16",1,IF(C18="Jun 1",2,IF(C18="Jun 16",3,IF(C18="July 1",4,IF(C18="July 16",5,IF(C18="Aug 1",6)))))) -> 1 | D21: =IF(D18="May 31",2,IF(D18="Jun 15",3,IF(D18="Jun 30",4,IF(D18="July 15",5,IF(D18="July 31",6,IF(D18="Aug 15",7)))))) -> FALSE | L21: May | M21: =IF(C18="May 16",L18/D22,0) -> 0
C22: =(IF($D$7=9,Dropdowns!$F$2,IF($D$7=9.5,Dropdowns!$G$2,IF($D$7=10,Dropdowns!$H$2,IF($D$7=10.5,Dropdowns!$I$2,IF($D$7=11,Dropdowns!$J$2,IF($D$7=11.5,Dropdowns!$K$2))))))) -> FALSE | D22: =D21-C21 -> -1 | L22: June | M22: =IF(OR(D18="May 31",C18="July 1",C18="July 16", C18="Aug 1"),0,IF(D18="Jun 15",L18/D22,IF(C18="Jun 16",L18/D22,IF(AND(C18="Jun 16",D18="Jun 30"),L18/D22,IF(AND(D18<>"Jun 15"),(L18/D22)*2,0))))) -> 0
C23: =(12-$D$7)*2 -> 24 | D23: =D22*C22 -> 0 | L23: July | M23: =IF(OR(D18="June 30",C18="June 1",C18="June 16",C18="Aug 1"),0,IF(D18="July 15",L18/D22,IF(C18="July 16",L18/D22,IF(AND(D18="July 31",C18<>"July 16"),(L18/D22)*2,IF(AND(D18="Aug 15",C18<>"July 16"),(L18/D22)*2,0))))) -> 0
L24: Aug | M24: =IF(D18="Aug 15",L18/D22,0) -> 0
B25: 2 | C25: Oracle Account Number: | D25: 01 | F25: 70550 | K25: 00000 | O25: =(VLOOKUP(I25,Dropdowns!$N$2:$P$12,3)) -> Non-SPA
D26: ENT | E26: DEPT | F26: OBJ | G26: FEC | I26: PROJ | K26: PROG
C28: May 16 | L28: =(($M$3*D33)*G28) -> 0
C29: Start Date | D29: End Date | G29: % Effort | L29: Contract Amount
C30: =IF(C33<D32,"Exceeds maximum available summer months","") ->  | E30: Approval: | L30: Date:
C31: =IF(C28="May 16",1,IF(C28="Jun 1",2,IF(C28="Jun 16",3,IF(C28="July 1",4,IF(C28="July 16",5,IF(C28="Aug 1",6)))))) -> 1 | D31: =IF(D28="May 31",2,IF(D28="Jun 15",3,IF(D28="Jun 30",4,IF(D28="July 15",5,IF(D28="July 31",6,IF(D28="Aug 15",7)))))) -> FALSE | L31: May | M31: =IF(C28="May 16",L28/D32,0) -> 0
C32: =(IF($D$7=9,Dropdowns!$F$2,IF($D$7=9.5,Dropdowns!$G$2,IF($D$7=10,Dropdowns!$H$2,IF($D$7=10.5,Dropdowns!$I$2,IF($D$7=11,Dropdowns!$J$2,IF($D$7=11.5,Dropdowns!$K$2))))))) -> FALSE | D32: =D31-C31 -> -1 | L32: June | M32: =IF(OR(D28="May 31",C28="July 1",C28="July 16", C28="Aug 1"),0,IF(D28="Jun 15",L28/D32,IF(C28="Jun 16",L28/D32,IF(AND(C28="Jun 16",D28="Jun 30"),L28/D32,IF(AND(D28<>"Jun 15"),(L28/D32)*2,0))))) -> 0
C33: =(12-$D$7)*2 -> 24 | D33: =D32*C32 -> 0 | L33: July | M33: =IF(OR(D28="June 30",C28="June 1",C28="June 16",C28="Aug 1"),0,IF(D28="July 15",L28/D32,IF(C28="July 16",L28/D32,IF(AND(D28="July 31",C28<>"July 16"),(L28/D32)*2,IF(AND(D28="Aug 15",C28<>"July 16"),(L28/D32)*2,0))))) -> 0
L34: Aug | M34: =IF(D28="Aug 15",L28/D32,0) -> 0
B35: 3 | C35: Oracle Account Number: | D35: 01 | F35: 70550 | K35: 00000 | O35: =(VLOOKUP(I35,Dropdowns!$N$2:$P$12,3)) -> Non-SPA
D36: ENT | E36: DEPT | F36: OBJ | G36: FEC | K36: PROG
C38: May 16 | L38: =(($M$3*D43)*G38) -> 0
C39: Start Date | D39: End Date | G39: % Effort | L39: Contract Amount
C40: =IF(C43<D42,"Exceeds maximum available summer months","") ->  | E40: Approval: | L40: Date:
C41: =IF(C38="May 16",1,IF(C38="Jun 1",2,IF(C38="Jun 16",3,IF(C38="July 1",4,IF(C38="July 16",5,IF(C38="Aug 1",6)))))) -> 1 | D41: =IF(D38="May 31",2,IF(D38="Jun 15",3,IF(D38="Jun 30",4,IF(D38="July 15",5,IF(D38="July 31",6,IF(D38="Aug 15",7)))))) -> FALSE | L41: May | M41: =IF(C38="May 16",L38/D42,0) -> 0
C42: =(IF($D$7=9,Dropdowns!$F$2,IF($D$7=9.5,Dropdowns!$G$2,IF($D$7=10,Dropdowns!$H$2,IF($D$7=10.5,Dropdowns!$I$2,IF($D$7=11,Dropdowns!$J$2,IF($D$7=11.5,Dropdowns!$K$2))))))) -> FALSE | D42: =D41-C41 -> -1 | L42: June | M42: =IF(OR(D38="May 31",C38="July 1",C38="July 16", C38="Aug 1"),0,IF(D38="Jun 15",L38/D42,IF(C38="Jun 16",L38/D42,IF(AND(C38="Jun 16",D38="Jun 30"),L38/D42,IF(AND(D38<>"Jun 15"),(L38/D42)*2,0))))) -> 0
C43: =(12-$D$7)*2 -> 24 | D43: =D42*C42 -> 0 | L43: July | M43: =IF(OR(D38="June 30",C38="June 1",C38="June 16",C38="Aug 1"),0,IF(D38="July 15",L38/D42,IF(C38="July 16",L38/D42,IF(AND(D38="July 31",C38<>"July 16"),(L38/D42)*2,IF(AND(D38="Aug 15",C38<>"July 16"),(L38/D42)*2,0))))) -> 0
L44: Aug | M44: =IF(D38="Aug 15",L38/D42,0) -> 0
B45: 4 | C45: Oracle Account Number: | D45: 01 | F45: 70550 | K45: 00000 | O45: =(VLOOKUP(I45,Dropdowns!$N$2:$P$12,3)) -> Non-SPA
D46: ENT | E46: DEPT | F46: OBJ | G46: FEC | I46: PROJ | K46: PROG
C48: May 16 | L48: =(($M$3*D53)*G48) -> 0
C49: Start Date | D49: End Date | G49: % Effort | L49: Contract Amount
C50: =IF(C53<D52,"Exceeds maximum available summer months","") ->  | E50: Approval: | L50: Date:
C51: =IF(C48="May 16",1,IF(C48="Jun 1",2,IF(C48="Jun 16",3,IF(C48="July 1",4,IF(C48="July 16",5,IF(C48="Aug 1",6)))))) -> 1 | D51: =IF(D48="May 31",2,IF(D48="Jun 15",3,IF(D48="Jun 30",4,IF(D48="July 15",5,IF(D48="July 31",6,IF(D48="Aug 15",7)))))) -> FALSE | L51: May | M51: =IF(C48="May 16",L48/D52,0) -> 0
C52: =(IF($D$7=9,Dropdowns!$F$2,IF($D$7=9.5,Dropdowns!$G$2,IF($D$7=10,Dropdowns!$H$2,IF($D$7=10.5,Dropdowns!$I$2,IF($D$7=11,Dropdowns!$J$2,IF($D$7=11.5,Dropdowns!$K$2))))))) -> FALSE | D52: =D51-C51 -> -1 | L52: June | M52: =IF(OR(D48="May 31",C48="July 1",C48="July 16", C48="Aug 1"),0,IF(D48="Jun 15",L48/D52,IF(C48="Jun 16",L48/D52,IF(AND(C48="Jun 16",D48="Jun 30"),L48/D52,IF(AND(D48<>"Jun 15"),(L48/D52)*2,0))))) -> 0
C53: =(12-$D$7)*2 -> 24 | D53: =D52*C52 -> 0 | L53: July | M53: =IF(OR(D48="June 30",C48="June 1",C48="June 16",C48="Aug 1"),0,IF(D48="July 15",L48/D52,IF(C48="July 16",L48/D52,IF(AND(D48="July 31",C48<>"July 16"),(L48/D52)*2,IF(AND(D48="Aug 15",C48<>"July 16"),(L48/D52)*2,0))))) -> 0
L54: Aug | M54: =IF(D48="Aug 15",L48/D52,0) -> 0
B55: 5 | C55: Oracle Account Number: | D55: 01 | F55: 70550 | K55: 00000 | O55: =(VLOOKUP(I55,Dropdowns!$N$2:$P$12,3)) -> Non-SPA
D56: ENT | E56: DEPT | F56: OBJ | G56: FEC | I56: PROJ | K56: PROG
C58: May 16 | L58: =(($M$3*D63)*G58) -> 0
C59: Start Date | D59: End Date | G59: % Effort | L59: Contract Amount
C60: =IF(C63<D62,"Exceeds maximum available summer months","") ->  | E60: Approval: | L60: Date:
C61: =IF(C58="May 16",1,IF(C58="Jun 1",2,IF(C58="Jun 16",3,IF(C58="July 1",4,IF(C58="July 16",5,IF(C58="Aug 1",6)))))) -> 1 | D61: =IF(D58="May 31",2,IF(D58="Jun 15",3,IF(D58="Jun 30",4,IF(D58="July 15",5,IF(D58="July 31",6,IF(D58="Aug 15",7)))))) -> FALSE | L61: May | M61: =IF(C58="May 16",L58/D62,0) -> 0
C62: =(IF($D$7=9,Dropdowns!$F$2,IF($D$7=9.5,Dropdowns!$G$2,IF($D$7=10,Dropdowns!$H$2,IF($D$7=10.5,Dropdowns!$I$2,IF($D$7=11,Dropdowns!$J$2,IF($D$7=11.5,Dropdowns!$K$2))))))) -> FALSE | D62: =D61-C61 -> -1 | L62: June | M62: =IF(OR(D58="May 31",C58="July 1",C58="July 16", C58="Aug 1"),0,IF(D58="Jun 15",L58/D62,IF(C58="Jun 16",L58/D62,IF(AND(C58="Jun 16",D58="Jun 30"),L58/D62,IF(AND(D58<>"Jun 15"),(L58/D62)*2,0))))) -> 0
C63: =(12-$D$7)*2 -> 24 | D63: =D62*C62 -> 0 | L63: July | M63: =IF(OR(D58="June 30",C58="June 1",C58="June 16",C58="Aug 1"),0,IF(D58="July 15",L58/D62,IF(C58="July 16",L58/D62,IF(AND(D58="July 31",C58<>"July 16"),(L58/D62)*2,IF(AND(D58="Aug 15",C58<>"July 16"),(L58/D62)*2,0))))) -> 0
L64: Aug | M64: =IF(D58="Aug 15",L58/D62,0) -> 0
B65: 6 | C65: Oracle Account Number: | D65: 01 | F65: 70550 | K65: 00000 | O65: =(VLOOKUP(I65,Dropdowns!$N$2:$P$12,3)) -> Non-SPA
D66: ENT | E66: DEPT | F66: OBJ | G66: FEC | I66: PROJ | K66: PROG
C68: May 16 | L68: =(($M$3*D73)*G68) -> 0
C69: Start Date | D69: End Date | G69: % Effort | L69: Contract Amount
C70: =IF(C73<D72,"Exceeds maximum available summer months","") ->  | E70: Approval: | L70: Date:
C71: =IF(C68="May 16",1,IF(C68="Jun 1",2,IF(C68="Jun 16",3,IF(C68="July 1",4,IF(C68="July 16",5,IF(C68="Aug 1",6)))))) -> 1 | D71: =IF(D68="May 31",2,IF(D68="Jun 15",3,IF(D68="Jun 30",4,IF(D68="July 15",5,IF(D68="July 31",6,IF(D68="Aug 15",7)))))) -> FALSE | L71: May | M71: =IF(C68="May 16",L68/D72,0) -> 0
C72: =(IF($D$7=9,Dropdowns!$F$2,IF($D$7=9.5,Dropdowns!$G$2,IF($D$7=10,Dropdowns!$H$2,IF($D$7=10.5,Dropdowns!$I$2,IF($D$7=11,Dropdowns!$J$2,IF($D$7=11.5,Dropdowns!$K$2))))))) -> FALSE | D72: =D71-C71 -> -1 | L72: June | M72: =IF(OR(D68="May 31",C68="July 1",C68="July 16", C68="Aug 1"),0,IF(D68="Jun 15",L68/D72,IF(C68="Jun 16",L68/D72,IF(AND(C68="Jun 16",D68="Jun 30"),L68/D72,IF(AND(D68<>"Jun 15"),(L68/D72)*2,0))))) -> 0
C73: =(12-$D$7)*2 -> 24 | D73: =D72*C72 -> 0 | L73: July | M73: =IF(OR(D68="June 30",C68="June 1",C68="June 16",C68="Aug 1"),0,IF(D68="July 15",L68/D72,IF(C68="July 16",L68/D72,IF(AND(D68="July 31",C68<>"July 16"),(L68/D72)*2,IF(AND(D68="Aug 15",C68<>"July 16"),(L68/D72)*2,0))))) -> 0
L74: Aug | M74: =IF(D68="Aug 15",L68/D72,0) -> 0
K76: Commitments
K77: Dollars | L77: %
I78: May: | K78: =M21+M31+M41+M51+M61+M71 -> 0 | L78: =IF($D$7=9, K78/($M$5*Dropdowns!F12),IF($D$7=9.5, EAF!K78/(EAF!$M$5*Dropdowns!G12), IF(EAF!$D$7=10, EAF!K78/(EAF!$M$5*Dropdowns!H12),IF(EAF!$D$7=10.5, EAF!K78/(EAF!$M$5*Dropdowns!I12),IF(EAF!$D$7=11, EAF!K78/(EAF!$M$5*Dropdowns!J12), IF(EAF!$D$7=11.5, EAF!K78/(EAF!$M$5*Dropdowns!K12), "")))))) ->  | M78: =IF(AND($D$7=9,(K78/$M$5)>Dropdowns!F12),"Exceeds Allowable Amount for May",IF(AND($D$7=9.5,(K78/$M$5)>Dropdowns!G12),"Exceeds Allowable Amount for May",IF(AND($D$7=10,(K78/$M$5)>Dropdowns!H12),"Exceeds Allowable Amount for May",IF(AND($D$7=10.5,(K78/$M$5)>Dropdowns!I12),"Exceeds Allowable Amount for May",IF(AND($D$7=11,(K78/$M$5)>Dropdowns!J12),"Exceeds Allowable Amount for May",IF(AND($D$7=11.5,(K78/$M$5)>Dropdowns!K12),"Exceeds Allowable Amount for May","")))))) -> 
I79: June: | K79: =M22+M32+M42+M52+M62+M72 -> 0 | L79: =IF($D$7=9, K79/($M$5*Dropdowns!F13),IF($D$7=9.5, EAF!K79/(EAF!$M$5*Dropdowns!G13), IF(EAF!$D$7=10, EAF!K79/(EAF!$M$5*Dropdowns!H13),IF(EAF!$D$7=10.5, EAF!K79/(EAF!$M$5*Dropdowns!I13),IF(EAF!$D$7=11, EAF!K79/(EAF!$M$5*Dropdowns!J13), IF(EAF!$D$7=11.5, EAF!K79/(EAF!$M$5*Dropdowns!K13), "")))))) ->  | M79: =IF(AND($D$7=9,(K79/$M$5)>Dropdowns!F13),"Exceeds Allowable Amount for June",IF(AND($D$7=9.5,(K79/$M$5)>Dropdowns!G13),"Exceeds Allowable Amount for June",IF(AND($D$7=10,(K79/$M$5)>Dropdowns!H13),"Exceeds Allowable Amount for June",IF(AND($D$7=10.5,(K79/$M$5)>Dropdowns!I13),"Exceeds Allowable Amount for June",IF(AND($D$7=11,(K79/$M$5)>Dropdowns!J13),"Exceeds Allowable Amount for June",IF(AND($D$7=11.5,(K79/$M$5)>Dropdowns!K13),"Exceeds Allowable Amount for June","")))))) -> 
I80: July: | K80: =M23+M33+M43+M53+M63+M73 -> 0 | L80: =IF($D$7=9, K80/($M$5*Dropdowns!F14),IF($D$7=9.5, EAF!K80/(EAF!$M$5*Dropdowns!G14), IF(EAF!$D$7=10, EAF!K80/(EAF!$M$5*Dropdowns!H14),IF(EAF!$D$7=10.5, EAF!K80/(EAF!$M$5*Dropdowns!I14),IF(EAF!$D$7=11, EAF!K80/(EAF!$M$5*Dropdowns!J14), IF(EAF!$D$7=11.5, EAF!K80/(EAF!$M$5*Dropdowns!K14), "")))))) ->  | M80: =IF(AND($D$7=9,(K80/$M$5)>Dropdowns!F14),"Exceeds Allowable Amount for July",IF(AND($D$7=9.5,(K80/$M$5)>Dropdowns!G14),"Exceeds Allowable Amount for July",IF(AND($D$7=10,(K80/$M$5)>Dropdowns!H14),"Exceeds Allowable Amount for July",IF(AND($D$7=10.5,(K80/$M$5)>Dropdowns!I14),"Exceeds Allowable Amount for July",IF(AND($D$7=11,(K80/$M$5)>Dropdowns!J14),"Exceeds Allowable Amount for July",IF(AND($D$7=11.5,(K80/$M$5)>Dropdowns!K14),"Exceeds Allowable Amount for July","")))))) -> 
I81: August: | K81: =M24+M34+M44+M54+M64+M74 -> 0 | L81: =IF($D$7=9, K81/($M$5*Dropdowns!F15),IF($D$7=9.5, EAF!K81/(EAF!$M$5*Dropdowns!G15), IF(EAF!$D$7=10, EAF!K81/(EAF!$M$5*Dropdowns!H15),IF(EAF!$D$7=10.5, EAF!K81/(EAF!$M$5*Dropdowns!I15),IF(EAF!$D$7=11, EAF!K81/(EAF!$M$5*Dropdowns!J15), IF(EAF!$D$7=11.5, EAF!K81/(EAF!$M$5*Dropdowns!K15), "")))))) ->  | M81: =IF(AND($D$7=9,(K81/$M$5)>Dropdowns!F15),"Exceeds Allowable Amount for August",IF(AND($D$7=9.5,(K81/$M$5)>Dropdowns!G15),"Exceeds Allowable Amount for August",IF(AND($D$7=10,(K81/$M$5)>Dropdowns!H15),"Exceeds Allowable Amount for August",IF(AND($D$7=10.5,(K81/$M$5)>Dropdowns!I15),"Exceeds Allowable Amount for August",IF(AND($D$7=11,(K81/$M$5)>Dropdowns!J15),"Exceeds Allowable Amount for August",IF(AND($D$7=11.5,(K81/$M$5)>Dropdowns!K15),"Exceeds Allowable Amount for August","")))))) -> 
I82: Sponsored Projects Total: | K82: =IF(O15="SPA",L18,0)+IF(O25="SPA",$L$28,0)+IF(O35="SPA",$L$38,0)+IF(O45="SPA",$L$48,0)+IF(O55="SPA",$L$58,0)+IF(O65="SPA",$L$68,0) -> 0
I83: Other Total: | K83: =IF(O15="Non-SPA", $L$18,0)+IF(O25="Non-SPA", $L$28,0)+IF(O35="Non-SPA",$L$38,0)+IF(O45="Non-SPA",$L$48,0)+IF(O55="Non-SPA",$L$58,0)+IF(O65="Non-SPA",$L$68,0) -> 0
M84: =IF(K82>M7, "Exceeds Max Amount for sponsored projects. Adjust % effort to <90% or fill out POW form.",IF(K85>M5, "Exceeds maximum summer salary amount.","")) -> 
I85: Total: | K85: =SUM(K78:K81)+M9 -> 0 | L85: =K85/M5 -> 
C87: If processing a paper EAF, please collect appropriate approvals. All Sponsored Projects must have PI approval for each award.
C89: Preparer Name: | L89: Date:
C91: Supervisor*: | L91: Date:
C92: *only req'd if individual receiving SS is also the dept. approver
C94: SPA Approval: | L94: Date:

Sheet A216810396964DCDB399904ED81BA8E (hidden)
A1: Address | B1: ValueType | C1: Value

Sheet Dropdowns (hidden)
F1: 9 | G1: 9.5 | H1: 10 | I1: 10.5 | J1: 11 | K1: 11.5 | N1: Project delineations
C2: Select One | E2: May 16 | F2: =$F$10/6 -> 0.05555555556 | G2: =$G$10/5 -> 0.05263157895 | H2: =$H$10/4 -> 0.05 | I2: =$I$10/3 -> 0.04761904762 | J2: =$J$10/2 -> 0.04545454545 | K2: =$K$10/1 -> 0.04347826087 | L2: May 31 | N2: 0 | O2: 9999 | P2: Non-SPA
A3: 9 | C3: Yes | E3: Jun 1 | F3: 0.05555555556 | G3: 0.05263157895 | H3: 0.05 | I3: 0.04761904762 | J3: 0.04545454545 | K3: 0.04347826087 | L3: Jun 15 | N3: 10000 | O3: 19999 | P3: Non-SPA
A4: 9.5 | C4: No | E4: Jun 16 | F4: 0.05555555556 | G4: 0.05263157895 | H4: 0.05 | I4: 0.04761904762 | J4: 0.04545454545 | K4: 0.04347826087 | L4: Jun 30 | N4: 20000 | O4: 29999 | P4: Non-SPA
A5: 10 | E5: July 1 | F5: 0.05555555556 | G5: 0.05263157895 | H5: 0.05 | I5: 0.04761904762 | J5: 0.04545454545 | K5: 0.04347826087 | L5: July 15 | N5: 30000 | O5: 39999 | P5: SPA
A6: 10.5 | E6: July 16 | F6: 0.05555555556 | G6: 0.05263157895 | H6: 0.05 | I6: 0.04761904762 | J6: 0.04545454545 | K6: 0.04347826087 | L6: July 31 | N6: 40000 | O6: 49999 | P6: Non-SPA
A7: 11 | E7: Aug 1 | F7: 0.05555555556 | G7: 0.05263157895 | H7: 0.05 | I7: 0.04761904762 | J7: 0.04545454545 | K7: 0.04347826087 | L7: Aug 15 | N7: 50000 | O7: 59999 | P7: Non-SPA
A8: 11.5 | N8: 60000 | O8: 69999 | P8: Non-SPA
A9: 12 | N9: 70000 | O9: 79999 | P9: Non-SPA
F10: =3/9 -> 0.3333333333 | G10: =2.5/9.5 -> 0.2631578947 | H10: =2/10 -> 0.2 | I10: =1.5/10.5 -> 0.1428571429 | J10: =1/11 -> 0.09090909091 | K10: =0.5/11.5 -> 0.04347826087 | N10: 80000 | O10: 89999 | P10: Non-SPA
N11: 90000 | O11: 99999 | P11: Non-SPA
E12: May | F12: =0.5/3 -> 0.1666666667 | G12: =0.5/2.5 -> 0.2 | H12: =0.5/2 -> 0.25 | I12: =0.5/1.5 -> 0.3333333333 | J12: =0.5/1 -> 0.5 | K12: =0.5/0.5 -> 1 | N12: A0000 | O12: Z9999 | P12: SPA
E13: June | F13: =1/3 -> 0.3333333333 | G13: =1/2.5 -> 0.4 | H13: =1/2 -> 0.5 | I13: =1/1.5 -> 0.6666666667 | J13: =1/1 -> 1 | K13: =0.5/1 -> 0.5
E14: July | F14: =1/3 -> 0.3333333333 | G14: =1/2.5 -> 0.4 | H14: =1/2 -> 0.5 | I14: =1/1.5 -> 0.6666666667 | J14: =1/1 -> 1 | K14: =0.5/1 -> 0.5
E15: Aug | F15: =0.5/3 -> 0.1666666667 | G15: =0.5/2.5 -> 0.2 | H15: =0.5/2 -> 0.25 | I15: =0.5/1.5 -> 0.3333333333 | J15: =0.5/1 -> 0.5 | K15: =0.5/0.5 -> 1
F16: =SUM(F12:F15) -> 1 | G16: =SUM(G12:G15) -> 1.2 | H16: 1.5 | I16: 2 | J16: 3 | K16: 3
